[Event "*** Titled Tuesday Blitz"]
[Site "Chess.com"]
[Date "2021.02.02"]
[Round "6"]
[White "mjray79"]
[Black "GMJustin"]
[Result "1-0"]
[WhiteElo "2509"]
[BlackElo "2312"]
[TimeControl "180+1"]
[EndTime "11:07:34 PST"]
[Termination "mjray79 won on time"]

1. d4 {[%clk 0:03:00.9]} 1... Nf6 {[%clk 0:02:45]} 2. c4 {[%clk 0:03:00.2]} 2...
g6 {[%clk 0:02:41.8]} 3. Nc3 {[%clk 0:02:59.7]} 3... d5 {[%clk 0:02:40.9]} 4.
cxd5 {[%clk 0:03:00.6]} 4... Nxd5 {[%clk 0:02:39.6]} 5. e4 {[%clk 0:03:01.5]}
5... Nxc3 {[%clk 0:02:38.5]} 6. bxc3 {[%clk 0:03:02.4]} 6... Bg7 {[%clk
0:02:37.8]} 7. Bc4 {[%clk 0:03:02.9]} 7... O-O {[%clk 0:02:29.3]} 8. Be3 {[%clk
0:03:03.2]} 8... c5 {[%clk 0:02:12.4]} 9. Ne2 {[%clk 0:03:03.1]} 9... Nc6 {[%clk
0:02:11.8]} 10. O-O {[%clk 0:03:02]} 10... Bg4 {[%clk 0:02:10]} 11. f3 {[%clk
0:03:01.7]} 11... Na5 {[%clk 0:02:05.2]} 12. Bd3 {[%clk 0:03:01.5]} 12... cxd4
{[%clk 0:02:03.1]} 13. cxd4 {[%clk 0:03:01.3]} 13... Be6 {[%clk 0:02:00.4]} 14.
Qa4 {[%clk 0:02:55.1]} 14... a6 {[%clk 0:01:54.4]} 15. Rac1 {[%clk 0:02:50.9]}
15... b5 {[%clk 0:01:51.4]} 16. Qa3 {[%clk 0:02:42.8]} 16... Nc4 {[%clk
0:01:47.4]} 17. Bxc4 {[%clk 0:02:42.1]} 17... Bxc4 {[%clk 0:01:48.3]} 18. Rfe1
{[%clk 0:02:31.4]} 18... Bxe2 {[%clk 0:01:40]} 19. Rxe2 {[%clk 0:02:32.3]} 19...
Bxd4 {[%clk 0:01:40]} 20. Kh1 {[%clk 0:02:31.8]} 20... Bxe3 {[%clk 0:01:34.7]}
21. Rxe3 {[%clk 0:02:32.7]} 21... Qd2 {[%clk 0:01:29.7]} 22. Rce1 {[%clk
0:02:31.3]} 22... Rfd8 {[%clk 0:01:19.1]} 23. h4 {[%clk 0:02:27.8]} 23... Rac8
{[%clk 0:01:03.1]} 24. Qxe7 {[%clk 0:02:21.1]} 24... Qxa2 {[%clk 0:00:55.8]} 25.
h5 {[%clk 0:02:12.3]} 25... Rd2 {[%clk 0:00:44.6]} 26. Qg5 {[%clk 0:01:59.8]}
26... Qe6 {[%clk 0:00:26.9]} 27. f4 {[%clk 0:01:53.1]} 27... Rcc2 {[%clk
0:00:23.4]} 28. f5 {[%clk 0:01:30.2]} 28... Qe5 {[%clk 0:00:14.6]} 29. hxg6
{[%clk 0:01:24.2]} 29... hxg6 {[%clk 0:00:09.6]} 30. Rh3 {[%clk 0:01:17.4]}
30... Qg7 {[%clk 0:00:01.2]} 31. f6 {[%clk 0:01:14.2]} 1-0

[Event "*** Titled Tuesday Blitz"]
[Site "Chess.com"]
[Date "2021.02.02"]
[Round "6"]
[White "AntonovaNadezhda"]
[Black "sbouchet"]
[Result "0-1"]
[WhiteElo "2161"]
[BlackElo "2334"]
[TimeControl "180+1"]
[EndTime "11:07:34 PST"]
[Termination "sbouchet won by resignation"]

1. b3 {[%clk 0:02:59.6]} 1... c5 {[%clk 0:02:55.1]} 2. Bb2 {[%clk 0:02:59.9]}
2... Nc6 {[%clk 0:02:55.8]} 3. Nf3 {[%clk 0:02:59.2]} 3... d5 {[%clk 0:02:55.6]}
4. e3 {[%clk 0:02:59.2]} 4... a6 {[%clk 0:02:56.2]} 5. d4 {[%clk 0:02:59]} 5...
Nf6 {[%clk 0:02:56.2]} 6. Bd3 {[%clk 0:02:54.8]} 6... Bg4 {[%clk 0:02:55.5]} 7.
Nbd2 {[%clk 0:02:48.7]} 7... e6 {[%clk 0:02:53.7]} 8. O-O {[%clk 0:02:46.3]}
8... cxd4 {[%clk 0:02:42.7]} 9. exd4 {[%clk 0:02:43.9]} 9... Be7 {[%clk
0:02:42.1]} 10. h3 {[%clk 0:02:42.9]} 10... Bh5 {[%clk 0:02:41]} 11. a3 {[%clk
0:02:42.8]} 11... Bg6 {[%clk 0:02:40.8]} 12. Bxg6 {[%clk 0:02:31.9]} 12... hxg6
{[%clk 0:02:41.7]} 13. c4 {[%clk 0:02:29]} 13... O-O {[%clk 0:02:41.2]} 14. c5
{[%clk 0:02:28.6]} 14... Ne4 {[%clk 0:02:38.5]} 15. b4 {[%clk 0:02:24.6]} 15...
f5 {[%clk 0:02:36.8]} 16. Ne5 {[%clk 0:02:19.7]} 16... Bf6 {[%clk 0:02:29.7]}
17. f3 {[%clk 0:02:11.8]} 17... Nxd2 {[%clk 0:02:21.4]} 18. Qxd2 {[%clk
0:02:10.8]} 18... Bxe5 {[%clk 0:02:18.3]} 19. dxe5 {[%clk 0:02:10.4]} 19... Qh4
{[%clk 0:02:16.9]} 20. Rfe1 {[%clk 0:02:02.2]} 20... Rfd8 {[%clk 0:02:07.1]} 21.
f4 {[%clk 0:01:52.7]} 21... d4 {[%clk 0:02:00.4]} 22. Rad1 {[%clk 0:01:42.1]}
22... Rd5 {[%clk 0:01:58]} 23. Qf2 {[%clk 0:01:37.7]} 23... Qh5 {[%clk
0:01:48.2]} 24. Rd3 {[%clk 0:01:32]} 24... g5 {[%clk 0:01:42]} 25. fxg5 {[%clk
0:01:27.9]} 25... Qxg5 {[%clk 0:01:40.2]} 26. Red1 {[%clk 0:01:22.2]} 26... Rad8
{[%clk 0:01:38]} 27. Bxd4 {[%clk 0:01:08.9]} 27... Nxe5 {[%clk 0:01:21.5]} 28.
R3d2 {[%clk 0:01:04.5]} 28... Nc4 {[%clk 0:01:00.2]} 29. Rd3 {[%clk 0:01:03.9]}
29... e5 {[%clk 0:01:00.5]} 30. Be3 {[%clk 0:01:01.5]} 30... Nxe3 {[%clk
0:00:57.6]} 31. Rxd5 {[%clk 0:00:55.8]} 31... Rxd5 {[%clk 0:00:56.5]} 32. Qa2
{[%clk 0:00:46.9]} 32... Qxg2+ {[%clk 0:00:49.1]} 33. Qxg2 {[%clk 0:00:43.8]}
33... Rxd1+ {[%clk 0:00:49.1]} 0-1

[Event "*** Titled Tuesday Blitz"]
[Site "Chess.com"]
[Date "2021.02.02"]
[Round "6"]
[White "JiiHart"]
[Black "Deepweb2020"]
[Result "0-1"]
[WhiteElo "2121"]
[BlackElo "2389"]
[TimeControl "180+1"]
[EndTime "11:07:35 PST"]
[Termination "Deepweb2020 won by resignation"]

1. e4 {[%clk 0:02:21.6]} 1... e5 {[%clk 0:02:59.6]} 2. Nf3 {[%clk 0:02:20.6]}
2... Nc6 {[%clk 0:02:56.8]} 3. Bb5 {[%clk 0:02:20.3]} 3... a6 {[%clk 0:02:56.4]}
4. Ba4 {[%clk 0:02:19.4]} 4... Nf6 {[%clk 0:02:56]} 5. O-O {[%clk 0:02:19.5]}
5... b5 {[%clk 0:02:56.7]} 6. Bb3 {[%clk 0:02:19.1]} 6... Bc5 {[%clk 0:02:57.6]}
7. Nxe5 {[%clk 0:02:10.8]} 7... Nxe5 {[%clk 0:02:57.3]} 8. d4 {[%clk 0:02:11]}
8... Bxd4 {[%clk 0:02:58.2]} 9. Qxd4 {[%clk 0:02:10.5]} 9... d6 {[%clk
0:02:59.1]} 10. c3 {[%clk 0:01:59.2]} 10... O-O {[%clk 0:02:56.4]} 11. Bg5
{[%clk 0:01:58.3]} 11... c5 {[%clk 0:02:55.6]} 12. Qd1 {[%clk 0:01:54.4]} 12...
Bb7 {[%clk 0:02:51.4]} 13. Nd2 {[%clk 0:01:53.7]} 13... h6 {[%clk 0:02:48.5]}
14. Bh4 {[%clk 0:01:48.2]} 14... Ng6 {[%clk 0:02:41]} 15. Bg3 {[%clk 0:01:43.6]}
15... Re8 {[%clk 0:02:34.8]} 16. Re1 {[%clk 0:01:42.2]} 16... d5 {[%clk
0:02:28.4]} 17. exd5 {[%clk 0:01:41.3]} 17... Rxe1+ {[%clk 0:02:28.1]} 18. Qxe1
{[%clk 0:01:40.6]} 18... Nxd5 {[%clk 0:02:28.2]} 19. Nf3 {[%clk 0:01:35.5]}
19... Ndf4 {[%clk 0:02:21.8]} 20. Rd1 {[%clk 0:01:31.8]} 20... Qf6 {[%clk
0:02:15.5]} 21. Qe3 {[%clk 0:01:19.2]} 21... h5 {[%clk 0:01:51.6]} 22. Bc2
{[%clk 0:01:15.4]} 22... h4 {[%clk 0:01:48.2]} 23. Bxg6 {[%clk 0:01:11.2]} 23...
hxg3 {[%clk 0:01:41.7]} 24. Bxf7+ {[%clk 0:01:08.9]} 24... Qxf7 {[%clk
0:01:38.5]} 25. hxg3 {[%clk 0:01:09.1]} 25... Nxg2 {[%clk 0:01:31.7]} 26. Kxg2
{[%clk 0:00:57]} 26... Rf8 {[%clk 0:01:31.4]} 27. Qf4 {[%clk 0:00:41.4]} 27...
Qh5 {[%clk 0:01:08.7]} 28. Qxf8+ {[%clk 0:00:16]} 28... Kxf8 {[%clk 0:01:07.8]}
29. Rd8+ {[%clk 0:00:16.1]} 29... Ke7 {[%clk 0:01:06.9]} 0-1

[Event "*** Titled Tuesday Blitz"]
[Site "Chess.com"]
[Date "2021.02.02"]
[Round "6"]
[White "queen_iryna"]
[Black "JAAC2002"]
[Result "0-1"]
[WhiteElo "2323"]
[BlackElo "2497"]
[TimeControl "180+1"]
[EndTime "11:07:36 PST"]
[Termination "JAAC2002 won by resignation"]

1. e4 {[%clk 0:03:00.9]} 1... c5 {[%clk 0:03:00]} 2. Nf3 {[%clk 0:03:01]} 2...
d6 {[%clk 0:03:00.4]} 3. Bb5+ {[%clk 0:03:00.3]} 3... Bd7 {[%clk 0:03:00]} 4.
Bxd7+ {[%clk 0:02:59.8]} 4... Qxd7 {[%clk 0:03:00.5]} 5. c4 {[%clk 0:03:00.4]}
5... Nf6 {[%clk 0:03:00.2]} 6. Nc3 {[%clk 0:03:00.5]} 6... g6 {[%clk 0:03:00.4]}
7. d4 {[%clk 0:03:00.4]} 7... cxd4 {[%clk 0:03:01.3]} 8. Nxd4 {[%clk 0:03:00.4]}
8... Bg7 {[%clk 0:03:01.5]} 9. Be3 {[%clk 0:02:58.9]} 9... Ng4 {[%clk
0:02:58.9]} 10. Bc1 {[%clk 0:02:24.6]} 10... Nc6 {[%clk 0:02:58.7]} 11. Nde2
{[%clk 0:02:15.8]} 11... O-O {[%clk 0:02:51.1]} 12. O-O {[%clk 0:02:15.6]} 12...
Rfc8 {[%clk 0:02:48]} 13. h3 {[%clk 0:02:13.8]} 13... Nge5 {[%clk 0:02:47.7]}
14. b3 {[%clk 0:02:09.2]} 14... Qd8 {[%clk 0:02:44.6]} 15. Be3 {[%clk
0:02:05.2]} 15... Qa5 {[%clk 0:02:40.7]} 16. Rc1 {[%clk 0:02:03.7]} 16... a6
{[%clk 0:02:39.8]} 17. Nd5 {[%clk 0:01:54.2]} 17... Nd7 {[%clk 0:02:35.5]} 18.
Nd4 {[%clk 0:01:45.2]} 18... Kf8 {[%clk 0:02:25.8]} 19. a4 {[%clk 0:01:30.6]}
19... e6 {[%clk 0:02:18.1]} 20. Nc3 {[%clk 0:00:57.2]} 20... Nc5 {[%clk
0:02:09.2]} 21. Nxc6 {[%clk 0:00:49.3]} 21... Rxc6 {[%clk 0:02:07.6]} 22. Bd4
{[%clk 0:00:45.2]} 22... Qb4 {[%clk 0:01:31.7]} 23. Bxc5 {[%clk 0:00:16.5]}
23... Qxc5 {[%clk 0:01:32.2]} 24. Qe2 {[%clk 0:00:11.3]} 24... Qb4 {[%clk
0:01:31.3]} 25. Qd3 {[%clk 0:00:05.8]} 25... Qxb3 {[%clk 0:01:26.3]} 26. Rfd1
{[%clk 0:00:04.5]} 26... Qxc4 {[%clk 0:01:24.6]} 27. Qf3 {[%clk 0:00:01.8]}
27... Bxc3 {[%clk 0:01:21.2]} 28. Rxc3 {[%clk 0:00:01.5]} 28... Qxc3 {[%clk
0:01:21]} 29. Qe2 {[%clk 0:00:01.3]} 29... Rac8 {[%clk 0:01:19.1]} 30. Rd2
{[%clk 0:00:01.6]} 30... Qa1+ {[%clk 0:01:18]} 31. Kh2 {[%clk 0:00:02.5]} 31...
Qe5+ {[%clk 0:01:17.9]} 32. g3 {[%clk 0:00:02]} 0-1

[Event "*** Titled Tuesday Blitz"]
[Site "Chess.com"]
[Date "2021.02.02"]
[Round "6"]
[White "Etud-otradnoe"]
[Black "dukicz123"]
[Result "0-1"]
[WhiteElo "2370"]
[BlackElo "2586"]
[TimeControl "180+1"]
[EndTime "11:07:37 PST"]
[Termination "dukicz123 won on time"]

1. e4 {[%clk 0:03:00.9]} 1... e5 {[%clk 0:03:00.2]} 2. Nf3 {[%clk 0:02:58.8]}
2... Nc6 {[%clk 0:03:00.5]} 3. Bb5 {[%clk 0:02:57.9]} 3... a6 {[%clk 0:03:00.6]}
4. Ba4 {[%clk 0:02:57.5]} 4... Nf6 {[%clk 0:03:00.4]} 5. Qe2 {[%clk 0:02:57.5]}
5... b5 {[%clk 0:02:58.7]} 6. Bb3 {[%clk 0:02:56.9]} 6... Bc5 {[%clk 0:02:59.6]}
7. a4 {[%clk 0:02:54.9]} 7... b4 {[%clk 0:02:54.3]} 8. a5 {[%clk 0:02:52.9]}
8... Nd4 {[%clk 0:02:34.9]} 9. Nxd4 {[%clk 0:02:39.2]} 9... Bxd4 {[%clk
0:02:33.8]} 10. c3 {[%clk 0:02:39.1]} 10... Ba7 {[%clk 0:02:23.9]} 11. d3 {[%clk
0:02:10.1]} 11... h6 {[%clk 0:02:19.4]} 12. Nd2 {[%clk 0:02:01.5]} 12... bxc3
{[%clk 0:02:13]} 13. bxc3 {[%clk 0:02:00.6]} 13... O-O {[%clk 0:02:13.9]} 14.
Ba3 {[%clk 0:01:58.3]} 14... Re8 {[%clk 0:02:11.3]} 15. O-O {[%clk 0:01:54.1]}
15... d5 {[%clk 0:02:07.1]} 16. Qf3 {[%clk 0:01:12.8]} 16... c6 {[%clk
0:01:20.6]} 17. exd5 {[%clk 0:00:58.5]} 17... cxd5 {[%clk 0:01:20.3]} 18. Ba4
{[%clk 0:00:58.3]} 18... Bd7 {[%clk 0:01:14.3]} 19. Bxd7 {[%clk 0:00:52.7]}
19... Qxd7 {[%clk 0:01:15.2]} 20. Rfe1 {[%clk 0:00:40.3]} 20... Rac8 {[%clk
0:01:14.5]} 21. Bb4 {[%clk 0:00:39.7]} 21... Ng4 {[%clk 0:01:11.1]} 22. Re2
{[%clk 0:00:32.8]} 22... f5 {[%clk 0:01:11.2]} 23. h3 {[%clk 0:00:29.9]} 23...
e4 {[%clk 0:01:11.6]} 24. dxe4 {[%clk 0:00:23.9]} 24... dxe4 {[%clk 0:01:11.9]}
25. Nxe4 {[%clk 0:00:17.6]} 25... Ne5 {[%clk 0:01:12.1]} 26. Nf6+ {[%clk
0:00:07.2]} 26... gxf6 {[%clk 0:01:11.9]} 27. Qg3+ {[%clk 0:00:06.2]} 27... Qg7
{[%clk 0:01:12.5]} 28. Qh4 {[%clk 0:00:02.3]} 28... Nf3+ {[%clk 0:01:12]} 0-1

[Event "*** Titled Tuesday Blitz"]
[Site "Chess.com"]
[Date "2021.02.02"]
[Round "6"]
[White "kamilianin235"]
[Black "onetowin"]
[Result "1-0"]
[WhiteElo "2228"]
[BlackElo "2007"]
[TimeControl "180+1"]
[EndTime "11:07:39 PST"]
[Termination "kamilianin235 won by resignation"]

1. e4 {[%clk 0:03:00.9]} 1... b6 {[%clk 0:02:55.3]} 2. d3 {[%clk 0:02:59.7]}
2... Bb7 {[%clk 0:02:55.1]} 3. Ne2 {[%clk 0:03:00.6]} 3... e6 {[%clk 0:02:55.2]}
4. g3 {[%clk 0:03:00.8]} 4... c5 {[%clk 0:02:54.6]} 5. Bg2 {[%clk 0:02:56.3]}
5... Nf6 {[%clk 0:02:51.5]} 6. O-O {[%clk 0:02:51.2]} 6... d5 {[%clk 0:02:51.4]}
7. e5 {[%clk 0:02:46.2]} 7... Ng4 {[%clk 0:02:36.6]} 8. f4 {[%clk 0:02:41.6]}
8... h5 {[%clk 0:02:21.9]} 9. c3 {[%clk 0:02:29.3]} 9... h4 {[%clk 0:02:19.4]}
10. h3 {[%clk 0:02:24.8]} 10... Nh6 {[%clk 0:02:11.9]} 11. g4 {[%clk 0:02:23.7]}
11... Nc6 {[%clk 0:01:50.7]} 12. Nd2 {[%clk 0:02:07.8]} 12... Ng8 {[%clk
0:01:47.8]} 13. Nf3 {[%clk 0:01:57.1]} 13... Qc7 {[%clk 0:01:44.3]} 14. Be3
{[%clk 0:01:51.8]} 14... O-O-O {[%clk 0:01:42.2]} 15. Bf2 {[%clk 0:01:48.8]}
15... Be7 {[%clk 0:01:36.4]} 16. Qe1 {[%clk 0:01:40.1]} 16... f6 {[%clk
0:01:28.1]} 17. exf6 {[%clk 0:01:33.4]} 17... Nxf6 {[%clk 0:01:26]} 18. Bxh4
{[%clk 0:01:29.2]} 18... Kb8 {[%clk 0:01:04.7]} 19. Bg3 {[%clk 0:01:20.5]} 19...
Ka8 {[%clk 0:01:02.4]} 20. Rd1 {[%clk 0:01:13.5]} 20... d4 {[%clk 0:00:48.7]}
21. c4 {[%clk 0:00:59.3]} 21... Nb4 {[%clk 0:00:48.4]} 22. f5 {[%clk 0:00:53.5]}
22... Nc2 {[%clk 0:00:45.4]} 23. Bxc7 {[%clk 0:00:50.5]} 23... Nxe1 {[%clk
0:00:42]} 24. Bxd8 {[%clk 0:00:45.8]} 24... Nxf3+ {[%clk 0:00:40.5]} 25. Bxf3
{[%clk 0:00:43.9]} 25... Rxd8 {[%clk 0:00:40.4]} 26. Bxb7+ {[%clk 0:00:42.5]}
26... Kxb7 {[%clk 0:00:39.7]} 27. fxe6 {[%clk 0:00:43.4]} 27... Rh8 {[%clk
0:00:36]} 28. Kg2 {[%clk 0:00:40.8]} 28... Nh7 {[%clk 0:00:31.3]} 29. Rf7 {[%clk
0:00:36.8]} 1-0

[Event "*** Titled Tuesday Blitz"]
[Site "Chess.com"]
[Date "2021.02.02"]
[Round "6"]
[White "Konavets"]
[Black "anon102030"]
[Result "1-0"]
[WhiteElo "2935"]
[BlackElo "2734"]
[TimeControl "180+1"]
[EndTime "11:07:41 PST"]
[Termination "Konavets won on time"]

1. e4 {[%clk 0:03:00.9]} 1... e5 {[%clk 0:02:59.2]} 2. Nf3 {[%clk 0:02:59.5]}
2... Nc6 {[%clk 0:02:59]} 3. Bc4 {[%clk 0:03:00.2]} 3... Bc5 {[%clk 0:02:58.2]}
4. d3 {[%clk 0:03:00.5]} 4... Nf6 {[%clk 0:02:58.1]} 5. Bg5 {[%clk 0:03:00.3]}
5... h6 {[%clk 0:02:56.8]} 6. Bh4 {[%clk 0:03:00.7]} 6... d6 {[%clk 0:02:55.6]}
7. Nbd2 {[%clk 0:02:44.6]} 7... Be6 {[%clk 0:02:53.5]} 8. a4 {[%clk 0:02:44.1]}
8... g5 {[%clk 0:02:46.3]} 9. Bg3 {[%clk 0:02:43]} 9... Qe7 {[%clk 0:02:39]} 10.
c3 {[%clk 0:02:42.5]} 10... a5 {[%clk 0:02:37.1]} 11. Qb3 {[%clk 0:02:40.5]}
11... O-O-O {[%clk 0:02:31.6]} 12. O-O-O {[%clk 0:02:28.8]} 12... Nh5 {[%clk
0:02:27.9]} 13. Bd5 {[%clk 0:02:25.6]} 13... Nf6 {[%clk 0:01:56.7]} 14. Kb1
{[%clk 0:02:18.6]} 14... Qd7 {[%clk 0:01:32.7]} 15. h4 {[%clk 0:02:15.1]} 15...
g4 {[%clk 0:01:31.6]} 16. Ng1 {[%clk 0:02:14.4]} 16... Bxd5 {[%clk 0:01:29.6]}
17. exd5 {[%clk 0:02:14.1]} 17... Ne7 {[%clk 0:01:30.2]} 18. c4 {[%clk
0:02:10.8]} 18... Nf5 {[%clk 0:01:27]} 19. Ne2 {[%clk 0:02:11]} 19... Rde8
{[%clk 0:01:21.8]} 20. h5 {[%clk 0:02:03]} 20... Nxg3 {[%clk 0:01:11.9]} 21.
fxg3 {[%clk 0:02:03.6]} 21... e4 {[%clk 0:00:57.2]} 22. d4 {[%clk 0:02:02.4]}
22... Bb4 {[%clk 0:00:57.2]} 23. Nf1 {[%clk 0:01:54.8]} 23... e3 {[%clk
0:00:47.3]} 24. Nxe3 {[%clk 0:01:55.1]} 24... Ne4 {[%clk 0:00:24.9]} 25. Nc2
{[%clk 0:01:44.5]} 25... Nd2+ {[%clk 0:00:22.3]} 26. Rxd2 {[%clk 0:01:44.7]}
26... Bxd2 {[%clk 0:00:23.2]} 27. Qd3 {[%clk 0:01:45.5]} 27... Bg5 {[%clk
0:00:20.5]} 28. Nc3 {[%clk 0:01:45.7]} 28... Re7 {[%clk 0:00:20]} 29. c5 {[%clk
0:01:45.1]} 29... Rhe8 {[%clk 0:00:19.7]} 30. c6 {[%clk 0:01:45.1]} 30... bxc6
{[%clk 0:00:18.7]} 31. Qa6+ {[%clk 0:01:44.7]} 31... Kd8 {[%clk 0:00:19.3]} 32.
dxc6 {[%clk 0:01:45.1]} 32... Qc8 {[%clk 0:00:18.6]} 33. Qxa5 {[%clk 0:01:45.3]}
33... Re6 {[%clk 0:00:14]} 34. Ka2 {[%clk 0:01:43.7]} 34... Rf6 {[%clk
0:00:12.8]} 35. Nd5 {[%clk 0:01:42.3]} 35... Rf2 {[%clk 0:00:12.6]} 36. Ncb4
{[%clk 0:01:40.6]} 36... Ree2 {[%clk 0:00:12.2]} 37. Nd3 {[%clk 0:01:38.5]}
37... Rxg2 {[%clk 0:00:11.1]} 38. Rf1 {[%clk 0:01:38.9]} 38... f6 {[%clk
0:00:06.9]} 39. Nxf6 {[%clk 0:01:29.7]} 39... Qe6+ {[%clk 0:00:07]} 40. Nd5
{[%clk 0:01:29.8]} 40... Rd2 {[%clk 0:00:01.3]} 41. Rf8+ {[%clk 0:01:29.5]} 1-0

[Event "*** Titled Tuesday Blitz"]
[Site "Chess.com"]
[Date "2021.02.02"]
[Round "6"]
[White "IceBelka"]
[Black "Kretov_Evgenij"]
[Result "0-1"]
[WhiteElo "2372"]
[BlackElo "2560"]
[TimeControl "180+1"]
[EndTime "11:07:42 PST"]
[Termination "Kretov_Evgenij won by resignation"]

1. e4 {[%clk 0:03:00.9]} 1... c5 {[%clk 0:02:59.9]} 2. Nf3 {[%clk 0:03:00.2]}
2... Nc6 {[%clk 0:02:56]} 3. d4 {[%clk 0:02:58]} 3... cxd4 {[%clk 0:02:56.1]} 4.
Nxd4 {[%clk 0:02:58.9]} 4... g6 {[%clk 0:02:56.4]} 5. Nc3 {[%clk 0:02:54.4]}
5... Bg7 {[%clk 0:02:56.4]} 6. Be3 {[%clk 0:02:53.5]} 6... Nf6 {[%clk
0:02:56.6]} 7. Bc4 {[%clk 0:02:52.7]} 7... O-O {[%clk 0:02:56.5]} 8. Bb3 {[%clk
0:02:52.4]} 8... d6 {[%clk 0:02:56.8]} 9. f3 {[%clk 0:02:49.1]} 9... Bd7 {[%clk
0:02:56.8]} 10. h4 {[%clk 0:02:48.3]} 10... Nxd4 {[%clk 0:02:49.8]} 11. Bxd4
{[%clk 0:02:47.1]} 11... a5 {[%clk 0:02:49.9]} 12. a4 {[%clk 0:02:37.3]} 12...
Be6 {[%clk 0:02:48]} 13. Nd5 {[%clk 0:02:17.6]} 13... Nxd5 {[%clk 0:02:45.7]}
14. exd5 {[%clk 0:02:14.6]} 14... Bd7 {[%clk 0:02:41.4]} 15. Bxg7 {[%clk
0:02:11.9]} 15... Kxg7 {[%clk 0:02:41.1]} 16. Qd4+ {[%clk 0:02:11.5]} 16... f6
{[%clk 0:02:40]} 17. h5 {[%clk 0:02:09.7]} 17... Rc8 {[%clk 0:02:33.8]} 18.
O-O-O {[%clk 0:01:56.4]} 18... g5 {[%clk 0:02:30.2]} 19. h6+ {[%clk 0:01:53.5]}
19... Kh8 {[%clk 0:02:30.3]} 20. Rde1 {[%clk 0:01:52.1]} 20... Bf5 {[%clk
0:02:29.3]} 21. g4 {[%clk 0:01:50.2]} 21... Bg6 {[%clk 0:02:28.5]} 22. f4 {[%clk
0:01:46.6]} 22... gxf4 {[%clk 0:02:25.7]} 23. Rhf1 {[%clk 0:01:32.2]} 23... Rc5
{[%clk 0:02:03.3]} 24. Rxf4 {[%clk 0:01:30.4]} 24... Qc7 {[%clk 0:02:03.4]} 25.
Rf2 {[%clk 0:01:20.4]} 25... Rc8 {[%clk 0:01:42.2]} 26. Ree2 {[%clk 0:00:59.5]}
26... Qb6 {[%clk 0:01:38.8]} 27. Qe3 {[%clk 0:00:54.4]} 27... Bxc2 {[%clk
0:01:27.2]} 28. Bc4 {[%clk 0:00:08.8]} 28... Bb3 {[%clk 0:01:09.4]} 29. Qxe7
{[%clk 0:00:06]} 29... Rxc4+ {[%clk 0:01:08]} 30. Rc2 {[%clk 0:00:05.4]} 30...
Rxc2+ {[%clk 0:01:06.3]} 31. Rxc2 {[%clk 0:00:05.9]} 31... Qg1+ {[%clk
0:01:06.2]} 32. Kd2 {[%clk 0:00:05.8]} 32... Rxc2+ {[%clk 0:01:05.9]} 33. Kd3
{[%clk 0:00:06.4]} 33... Qd1+ {[%clk 0:01:05.5]} 0-1

[Event "*** Titled Tuesday Blitz"]
[Site "Chess.com"]
[Date "2021.02.02"]
[Round "6"]
[White "JoliyRoger"]
[Black "ZenBull"]
[Result "1-0"]
[WhiteElo "2410"]
[BlackElo "2241"]
[TimeControl "180+1"]
[EndTime "11:07:44 PST"]
[Termination "JoliyRoger won by checkmate"]

1. d4 {[%clk 0:03:00.9]} 1... Nf6 {[%clk 0:02:57.6]} 2. c4 {[%clk 0:03:00.9]}
2... e6 {[%clk 0:02:58.1]} 3. Nf3 {[%clk 0:03:01.3]} 3... d5 {[%clk 0:02:58.2]}
4. Nc3 {[%clk 0:03:00.8]} 4... Bb4 {[%clk 0:02:57]} 5. cxd5 {[%clk 0:02:56.2]}
5... exd5 {[%clk 0:02:57.1]} 6. Bg5 {[%clk 0:02:56.9]} 6... h6 {[%clk 0:02:57]}
7. Bxf6 {[%clk 0:02:53.8]} 7... Qxf6 {[%clk 0:02:57.9]} 8. Rc1 {[%clk
0:02:53.7]} 8... O-O {[%clk 0:02:56.8]} 9. e3 {[%clk 0:02:54.2]} 9... c6 {[%clk
0:02:56]} 10. Bd3 {[%clk 0:02:49.2]} 10... Bd6 {[%clk 0:02:48.5]} 11. Ne2 {[%clk
0:02:44.9]} 11... Bg4 {[%clk 0:02:46.3]} 12. Ng3 {[%clk 0:02:44.1]} 12... Nd7
{[%clk 0:02:45.6]} 13. O-O {[%clk 0:02:44.1]} 13... Rfe8 {[%clk 0:02:37.9]} 14.
Be2 {[%clk 0:02:43.7]} 14... Nf8 {[%clk 0:02:35.8]} 15. Re1 {[%clk 0:02:32.6]}
15... Ng6 {[%clk 0:02:33.4]} 16. Nf1 {[%clk 0:02:33]} 16... Re7 {[%clk
0:02:24.4]} 17. h3 {[%clk 0:02:26.8]} 17... Bd7 {[%clk 0:02:15.9]} 18. N1h2
{[%clk 0:02:26]} 18... h5 {[%clk 0:02:12.1]} 19. Nf1 {[%clk 0:02:15.3]} 19...
Rae8 {[%clk 0:02:10]} 20. N3h2 {[%clk 0:02:10.4]} 20... h4 {[%clk 0:02:09]} 21.
Bg4 {[%clk 0:02:08.9]} 21... Bb8 {[%clk 0:01:50.4]} 22. Bxd7 {[%clk 0:02:07.7]}
22... Rxd7 {[%clk 0:01:50.8]} 23. Qg4 {[%clk 0:01:57]} 23... Qe6 {[%clk
0:01:47.2]} 24. Qh5 {[%clk 0:01:28]} 24... f5 {[%clk 0:01:34.4]} 25. Nf3 {[%clk
0:01:23.6]} 25... Qf6 {[%clk 0:01:13.4]} 26. N1d2 {[%clk 0:01:08.8]} 26... Rde7
{[%clk 0:01:01.1]} 27. Ng5 {[%clk 0:00:50.2]} 27... Qd6 {[%clk 0:00:49]} 28.
Ndf3 {[%clk 0:00:46.6]} 28... f4 {[%clk 0:00:33.1]} 29. Nxh4 {[%clk 0:00:34.3]}
29... Nxh4 {[%clk 0:00:28.5]} 30. Qh7+ {[%clk 0:00:32.5]} 30... Kf8 {[%clk
0:00:28.4]} 31. Qh8# {[%clk 0:00:33.2]} 1-0